fUST/lending_fUST_20240110
["ID","MTS","AMOUNT","RATE_DAILY","PERIOD"]
[311028557,1704874242688,-2146.3,0.00027945,2]
[311028558,1704874242697,-34848.33,0.00027945,2]
[311028559,1704874242706,-500.0,0.00027945,2]
[311028560,1704874242715,-500.0,0.00027945,2]
[311028561,1704874242724,-500.0,0.00027945,2]
[311028562,1704874242734,-500.0,0.00027945,2]
[311028563,1704874242743,-500.0,0.00027945,2]
[311028564,1704874242753,-500.0,0.00027945,2]
[311028565,1704874242762,-500.0,0.00027945,2]
[311028566,1704874242771,-1252.4,0.00027945,2]
[311028567,1704874242781,-1008.13,0.00027945,2]
[311028568,1704874242792,-3496.96,0.00027945,2]
[311028569,1704874242801,-2784.88,0.00027945,2]
[311028570,1704874242810,-500.0,0.00027945,2]
[311028571,1704874242820,-500.0,0.00028082,2]
[311028572,1704874242829,-532.41305287,0.00028219,2]
[311028573,1704874242838,-500.0,0.00028219,2]
[311028574,1704874242847,-500.0,0.00028219,2]
[311028575,1704874242856,-500.0,0.00028219,2]
[311028576,1704874242866,-500.0,0.00028219,2]
[311028577,1704874242874,-525.98,0.00028219,2]
[311028578,1704874242884,-929.22,0.00028219,2]
[311028579,1704874242893,-1100.68,0.00028219,2]
[311028580,1704874242902,-500.0,0.00028219,2]
[311028581,1704874242911,-1112.07,0.00028219,2]
[311028582,1704874242920,-500.0,0.00028219,2]
[311028583,1704874242929,-500.0,0.00028219,2]
[311028584,1704874242963,-500.0,0.00028219,2]
[311028585,1704874242972,-500.0,0.00028219,2]
[311028586,1704874242982,-500.0,0.00028219,2]
[311028587,1704874242991,-500.0,0.00028219,2]
[311028588,1704874243000,-500.0,0.00028219,2]
[311028589,1704874243009,-500.0,0.00028219,2]
[311028590,1704874243019,-500.0,0.00028219,2]
[311028591,1704874243028,-500.0,0.00028219,2]
[311028592,1704874243039,-500.0,0.00028219,2]
[311028593,1704874243048,-515.4271673,0.00028219,2]
[311028594,1704874243058,-500.0,0.00028219,2]
[311028595,1704874243067,-532.92074997,0.00028219,2]
[311028596,1704874243076,-1559.91,0.00028219,2]
[311028597,1704874243085,-500.0,0.00028219,2]
[311028598,1704874243094,-500.0,0.00028219,2]
[311028599,1704874243103,-2400.37,0.00028219,2]
[311028600,1704874243112,-500.0,0.00028219,2]
[311028601,1704874243121,-500.0,0.00028219,2]
[311028602,1704874243131,-500.0,0.00028219,2]
[311028604,1704874243140,-500.0,0.00028219,2]
[311028605,1704874243150,-500.0,0.00028219,2]
[311028606,1704874243160,-500.0,0.00028219,2]
[311028607,1704874243170,-500.0,0.00028219,2]
[311028608,1704874243181,-571.81,0.00028219,2]
[311028609,1704874243191,-1268.63,0.00028219,2]
[311028610,1704874243202,-358.55140645,0.00028219,2]
[311028611,1704874243212,-500.0,0.00028219,2]
[311028612,1704874243221,-1035.59,0.00028219,2]
[311028613,1704874243230,-500.0,0.00028219,2]
[311028614,1704874243240,-500.0,0.00028219,2]
[311028615,1704874243249,-1367.67,0.00028219,2]
[311028616,1704874243258,-978.29,0.00028219,2]
[311028618,1704874243268,-777.91,0.00028219,2]
[311028619,1704874243277,-500.0,0.00028219,2]
[311028621,1704874243287,-1066.05,0.00028219,2]
[311028622,1704874243298,-500.0,0.00028219,2]
[311028623,1704874243308,-500.0,0.00028219,2]
[311028624,1704874243318,-500.0,0.00028219,2]
[311028626,1704874243328,-6312.44,0.00028219,2]
[311028627,1704874243337,-684.63,0.00028219,2]
[311028629,1704874243347,-500.0,0.00028219,2]
[311028630,1704874243356,-4895.63,0.00028219,2]
[311028632,1704874243365,-947.02,0.00028219,2]
[311028633,1704874243375,-5500.46,0.00028219,2]
[311028634,1704874243384,-500.0,0.00028219,2]
[311028635,1704874243394,-500.0,0.00028219,2]
[311028636,1704874243403,-1450.96,0.00028219,2]
[311028637,1704874243412,-500.0,0.00028219,2]
[311028638,1704874243421,-500.0,0.00028219,2]
[311028640,1704874243430,-2524.73,0.00028219,2]
[311028642,1704874243439,-4083.87,0.00028219,2]
[311028643,1704874243449,-500.0,0.00028219,2]
[311028644,1704874243458,-500.0,0.00028219,2]
[311028645,1704874243467,-500.0,0.00028219,2]
[311028646,1704874243477,-12575.4,0.00028219,2]
[311028648,1704874243486,-500.0,0.00028219,5]
[311028649,1704874243496,-1501.81,0.00028219,2]
[311028651,1704874243506,-500.0,0.00028219,2]
[311028652,1704874243515,-500.0,0.00028219,2]
[311028654,1704874243525,-1495.45,0.00028219,2]
[311028655,1704874243535,-1974.68,0.00028219,2]
[311028657,1704874243545,-705.34,0.00028219,2]
[311028659,1704874243554,-500.0,0.00028219,2]
[311028660,1704874243564,-591.04,0.00028219,2]
[311028661,1704874243573,-500.0,0.00028219,2]
[311028662,1704874243582,-2146.3,0.00028219,2]
[311028663,1704874243592,-34848.33,0.00028219,2]
[311028664,1704874243600,-500.0,0.00028219,2]
[311028665,1704874243609,-500.0,0.00028219,2]
[311028666,1704874243618,-500.0,0.00028219,2]
[311028667,1704874243628,-500.0,0.00028219,2]
[311028668,1704874243637,-500.0,0.00028219,2]
[311028669,1704874243646,-1252.4,0.00028219,2]
[311028670,1704874243655,-500.0,0.00028219,2]
[311028671,1704874243665,-1008.13,0.00028219,2]
[311028672,1704874243674,-3496.96,0.00028219,2]
[311028673,1704874243683,-2784.88,0.00028219,2]
[311028674,1704874243693,-500.0,0.00028219,2]
[311028675,1704874243702,-153.0,0.00028264,2]
[311028676,1704874243711,-153.0,0.00028264,2]
[311028677,1704874243720,-153.0,0.00028264,2]
[311028678,1704874243730,-153.0,0.00028264,2]
[311028679,1704874243739,-500.0,0.00028356,2]
[311028680,1704874243748,-500.0,0.00028493,2]
[311028681,1704874243757,-500.0,0.00028493,2]
[311028682,1704874243767,-500.0,0.00028493,2]
[311028683,1704874243776,-500.0,0.00028493,2]
[311028684,1704874243785,-525.98,0.00028493,2]
[311028685,1704874243796,-929.22,0.00028493,2]
[311028686,1704874243805,-1100.68,0.00028493,2]
[311028687,1704874243814,-500.0,0.00028493,2]
[311028688,1704874243823,-1112.07,0.00028493,2]
[311028689,1704874243832,-500.0,0.00028493,2]
[311028690,1704874243841,-500.0,0.00028493,2]
[311028691,1704874243851,-613.79796148,0.00028493,2]
[311028692,1704874243860,-500.0,0.00028493,2]
[311028693,1704874243870,-500.0,0.00028493,2]
[311028694,1704874243879,-500.0,0.00028493,2]
[311028695,1704874243888,-500.0,0.00028493,2]
[311028696,1704874243898,-500.0,0.00028493,2]
[311028697,1704874243907,-500.0,0.00028493,2]
[311028698,1704874243917,-500.0,0.00028493,2]
[311028699,1704874243926,-500.0,0.00028493,2]
[311028700,1704874243936,-500.0,0.00028493,2]
[311028701,1704874243945,-1559.91,0.00028493,2]
[311028702,1704874243958,-409.47377034,0.00028493,2]
[311028703,1704874243967,-500.0,0.00028493,2]
[311028704,1704874243977,-2400.37,0.00028493,2]
[311028705,1704874243986,-500.0,0.00028493,2]
[311028706,1704874243997,-500.0,0.00028493,2]
[311028707,1704874244006,-500.0,0.00028493,2]
[311028708,1704874244015,-500.0,0.00028493,2]
[311028709,1704874244025,-500.0,0.00028493,2]
[311028710,1704874244034,-500.0,0.00028493,2]
[311028711,1704874244045,-500.0,0.00028493,2]
[311028712,1704874244055,-571.81,0.00028493,2]
[311028713,1704874244064,-1268.63,0.00028493,2]
[311028714,1704874244074,-500.0,0.00028493,2]
[311028715,1704874244083,-1035.59,0.00028493,2]
[311028716,1704874244093,-500.0,0.00028493,2]
[311028717,1704874244102,-1367.67,0.00028493,2]
[311028718,1704874244111,-978.29,0.00028493,2]
[311028719,1704874244121,-777.91,0.00028493,2]
[311028720,1704874244130,-500.0,0.00028493,2]
[311028721,1704874244139,-1066.05,0.00028493,2]
[311028722,1704874244149,-500.0,0.00028493,2]
[311028723,1704874244158,-500.0,0.00028493,2]
[311028724,1704874244167,-500.0,0.00028493,2]
[311028725,1704874244177,-6312.44,0.00028493,2]
[311028726,1704874244186,-684.63,0.00028493,2]
[311028727,1704874244195,-4895.63,0.00028493,2]
[311028728,1704874244205,-947.02,0.00028493,2]
[311028729,1704874244215,-5500.46,0.00028493,2]
[311028730,1704874244224,-500.0,0.00028493,2]
[311028731,1704874244233,-500.0,0.00028493,2]
[311028732,1704874244243,-1450.96,0.00028493,2]
[311028733,1704874244252,-500.0,0.00028493,2]
[311028734,1704874244261,-500.0,0.00028493,2]
[311028735,1704874244271,-2524.73,0.00028493,2]
[311028736,1704874244281,-4083.87,0.00028493,2]
[311028737,1704874244290,-500.0,0.00028493,2]
[311028738,1704874244300,-500.0,0.00028493,2]
[311028739,1704874244311,-500.0,0.00028493,2]
[311028740,1704874244320,-12575.4,0.00028493,2]
[311028741,1704874244330,-500.0,0.00028493,5]
[311028742,1704874244339,-1501.81,0.00028493,2]
[311028743,1704874244348,-500.0,0.00028493,2]
[311028744,1704874244358,-500.0,0.00028493,2]
[311028745,1704874244370,-1495.45,0.00028493,2]
[311028746,1704874244380,-1974.68,0.00028493,2]
[311028747,1704874244389,-705.34,0.00028493,2]
[311028748,1704874244399,-500.0,0.00028493,2]
[311028749,1704874244408,-591.04,0.00028493,2]
[311028750,1704874244418,-500.0,0.00028493,2]
[311028751,1704874244427,-2146.3,0.00028493,2]
[311028752,1704874244436,-34848.33,0.00028493,2]
[311028753,1704874244446,-500.0,0.00028493,2]
[311028754,1704874244456,-500.0,0.00028493,2]
[311028755,1704874244466,-500.0,0.00028493,2]
[311028756,1704874244475,-500.0,0.00028493,2]
[311028757,1704874244485,-500.0,0.00028493,2]
[311028758,1704874244494,-1252.4,0.00028493,2]
[311028759,1704874244504,-500.0,0.00028493,2]
[311028760,1704874244514,-1008.13,0.00028493,2]
[311028761,1704874244523,-3496.96,0.00028493,2]
[311028762,1704874244532,-2784.88,0.00028493,2]
[311028763,1704874244543,-500.0,0.00028493,2]
[311028764,1704874244552,-500.0,0.0002863,2]
[311028765,1704874244562,-500.0,0.00028767,2]
[311028766,1704874244571,-500.0,0.00028767,2]
[311028767,1704874244580,-500.0,0.00028767,2]
[311028768,1704874244589,-525.98,0.00028767,2]
[311028769,1704874244598,-500.0,0.00028767,2]
[311028770,1704874244608,-929.22,0.00028767,2]
[311028771,1704874244617,-1100.68,0.00028767,2]
[311028772,1704874244626,-500.0,0.00028767,2]
[311028773,1704874244636,-1112.07,0.00028767,2]
[311028774,1704874244645,-500.0,0.00028767,2]
[311028775,1704874244654,-500.0,0.00028767,2]
[311028776,1704874244663,-500.0,0.00028767,2]
[311028777,1704874244672,-500.0,0.00028767,2]
[311028778,1704874244681,-183.73886406,0.00028767,2]
[311028779,1704874244690,-647.31295981,0.00028767,2]
[311028780,1704874244699,-500.0,0.00028767,2]
[311028781,1704874244708,-500.0,0.00028767,2]
[311028782,1704874244718,-500.0,0.00028767,2]
[311028783,1704874244727,-533.73436023,0.00028767,2]
[311028784,1704874244736,-500.0,0.00028767,2]
[311028785,1704874244746,-1559.91,0.00028767,2]
[311028786,1704874244755,-500.0,0.00028767,2]
[311028787,1704874244764,-2400.37,0.00028767,2]
[311028788,1704874244773,-500.0,0.00028767,2]
[311028789,1704874244782,-500.0,0.00028767,2]
[311028790,1704874244791,-500.0,0.00028767,2]
[311028791,1704874244811,-500.0,0.00028767,2]
[311028792,1704874244823,-500.0,0.00028767,2]
[311028793,1704874244832,-500.0,0.00028767,2]
[311028794,1704874244842,-500.0,0.00028767,2]
[311028795,1704874244853,-571.81,0.00028767,2]
[311028796,1704874244863,-1268.63,0.00028767,2]
[311028797,1704874244872,-500.0,0.00028767,2]
[311028798,1704874244882,-1035.59,0.00028767,2]
[311028799,1704874244892,-500.0,0.00028767,2]
[311028800,1704874244902,-1367.67,0.00028767,2]
[311028801,1704874244912,-978.29,0.00028767,2]
[311028802,1704874244922,-777.91,0.00028767,2]
[311028803,1704874244932,-500.0,0.00028767,2]
[311028804,1704874244942,-1066.05,0.00028767,2]
[311028805,1704874244951,-605.4988926,0.00028767,2]
[311028806,1704874244962,-500.0,0.00028767,2]
[311028807,1704874244971,-155.0,0.00028767,2]
[311028808,1704874244981,-500.0,0.00028767,2]
[311028809,1704874244991,-6312.44,0.00028767,2]
[311028810,1704874245001,-684.63,0.00028767,2]
[311028811,1704874245011,-947.02,0.00028767,2]
[311028812,1704874245021,-4895.63,0.00028767,2]
[311028813,1704874245031,-5500.46,0.00028767,2]
[311028814,1704874245041,-500.0,0.00028767,2]
[311028815,1704874245051,-500.0,0.00028767,2]
[311028816,1704874245061,-1450.96,0.00028767,2]
[311028817,1704874245070,-500.0,0.00028767,2]
[311028818,1704874245080,-500.0,0.00028767,2]
[311028819,1704874245090,-2524.73,0.00028767,2]
[311028820,1704874245100,-4083.87,0.00028767,2]
[311028821,1704874245110,-500.0,0.00028767,2]
[311028822,1704874245121,-500.0,0.00028767,2]
[311028823,1704874245132,-500.0,0.00028767,2]
[311028824,1704874245141,-12575.4,0.00028767,2]
[311028825,1704874245151,-500.0,0.00028767,5]
[311028826,1704874245161,-1501.81,0.00028767,2]
[311028827,1704874245170,-500.0,0.00028767,2]
[311028828,1704874245180,-500.0,0.00028767,2]
[311028829,1704874245190,-1495.45,0.00028767,2]
[311028830,1704874245201,-1974.68,0.00028767,2]
[311028831,1704874245210,-705.34,0.00028767,2]
[311028832,1704874245220,-500.0,0.00028767,2]
[311028833,1704874245230,-591.04,0.00028767,2]
[311028834,1704874245239,-500.0,0.00028767,2]
[311028835,1704874245250,-2146.3,0.00028767,2]
[311028836,1704874245260,-34848.33,0.00028767,2]
[311028837,1704874245269,-500.0,0.00028767,2]
[311028838,1704874245279,-500.0,0.00028767,2]
[311028839,1704874245288,-500.0,0.00028767,2]
[311028840,1704874245298,-500.0,0.00028767,2]
[311028841,1704874245307,-500.0,0.00028767,2]
[311028842,1704874245317,-1252.4,0.00028767,2]
[311028843,1704874245327,-500.0,0.00028767,2]
[311028844,1704874245337,-1008.13,0.00028767,2]
[311028845,1704874245346,-3496.96,0.00028767,2]
[311028846,1704874245356,-2784.88,0.00028767,2]
[311028847,1704874245366,-500.0,0.00028767,2]
[311028848,1704874245376,-500.0,0.00028904,2]
[311028849,1704874245386,-426.86,0.00029,2]
[311028850,1704874245396,-5999.99,0.00029,2]
[311028851,1704874245405,-1982.97164167,0.00029,2]
[311028852,1704874245415,-2000.0,0.00029,2]
[311028853,1704874245424,-200.0,0.00029,4]
[311028854,1704874245434,-1976.749597,0.00029,2]
[311028855,1704874245444,-2000.0,0.0002901,2]
[311028856,1704874245454,-2000.0,0.0002902,2]
[311028857,1704874245463,-2000.0,0.0002903,2]
[311028858,1704874245473,-2000.0,0.0002904,2]
[311028859,1704874245483,-500.0,0.00029041,2]
[311028860,1704874245493,-500.0,0.00029041,2]
[311028861,1704874245503,-500.0,0.00029041,2]
[311028862,1704874245512,-525.98,0.00029041,2]
[311028863,1704874245522,-500.0,0.00029041,2]
[311028864,1704874245532,-929.22,0.00029041,2]
[311028865,1704874245542,-1100.68,0.00029041,2]
[311028866,1704874245552,-500.0,0.00029041,2]
[311028867,1704874245562,-1112.07,0.00029041,2]
[311028868,1704874245571,-500.0,0.00029041,2]
[311028869,1704874245581,-500.0,0.00029041,2]
[311028870,1704874245591,-500.0,0.00029041,2]
[311028871,1704874245600,-500.0,0.00029041,2]
[311028872,1704874245610,-500.0,0.00029041,2]
[311028873,1704874245620,-500.0,0.00029041,2]
[311028874,1704874245630,-500.0,0.00029041,2]
[311028875,1704874245640,-500.0,0.00029041,2]
[311028877,1704874245649,-1559.91,0.00029041,2]
[311028879,1704874245659,-425.37668231,0.00029041,2]
[311028880,1704874245669,-2400.37,0.00029041,2]
[311028881,1704874245679,-545.89315211,0.00029041,2]
[311028882,1704874245688,-500.0,0.00029041,2]
[311028883,1704874245698,-500.0,0.00029041,2]
[311028884,1704874245707,-500.0,0.00029041,2]
[311028885,1704874245717,-500.0,0.00029041,2]
[311028886,1704874245728,-500.0,0.00029041,2]
[311028890,1704874245851,-500.0,0.00029041,2]
[311028891,1704874245860,-571.81,0.00029041,2]
[311028892,1704874245869,-1268.63,0.00029041,2]
[311028894,1704874245878,-1035.59,0.00029041,2]
[311028895,1704874245887,-500.0,0.00029041,2]
[311028896,1704874245897,-1367.67,0.00029041,2]
[311028897,1704874245906,-978.29,0.00029041,2]
[311028898,1704874245916,-777.91,0.00029041,2]
[311028899,1704874245925,-500.0,0.00029041,2]
[311028901,1704874245934,-1066.05,0.00029041,2]
[311028902,1704874245943,-500.0,0.00029041,2]
[311028904,1704874245953,-533.8531936,0.00029041,2]
[311028905,1704874245962,-6312.44,0.00029041,2]
[311028906,1704874245971,-684.63,0.00029041,2]
[311028907,1704874245981,-947.02,0.00029041,2]
[311028908,1704874245991,-4895.63,0.00029041,2]
[311028909,1704874246000,-5500.46,0.00029041,2]
[311028910,1704874246009,-500.0,0.00029041,2]
[311028911,1704874246018,-500.0,0.00029041,2]
[311028912,1704874246028,-1450.96,0.00029041,2]
[311028913,1704874246037,-500.0,0.00029041,2]
[311028914,1704874246047,-500.0,0.00029041,2]
[311028915,1704874246056,-2524.73,0.00029041,2]
[311028917,1704874246065,-4083.87,0.00029041,2]
[311028918,1704874246074,-500.0,0.00029041,2]
[311028920,1704874246084,-500.0,0.00029041,2]
[311028921,1704874246093,-500.0,0.00029041,2]
[311028923,1704874246102,-9654.55928278,0.00029041,2]
[311028925,1704874246126,-2920.84071722,0.00029041,2]
[311028927,1704874246136,-158.5365866,0.00029041,5]
[311028928,1704874246145,-1501.81,0.00029041,2]
[311028929,1704874246154,-500.0,0.00029041,2]
[311028930,1704874246163,-500.0,0.00029041,2]
[311028932,1704874246172,-1495.45,0.00029041,2]
[311028933,1704874246181,-1974.68,0.00029041,2]
[311028934,1704874246190,-705.34,0.00029041,2]
[311028935,1704874246200,-507.5546075,0.00029041,2]
[311028936,1704874246210,-591.04,0.00029041,2]
[311028937,1704874246219,-500.0,0.00029041,2]
[311028938,1704874246229,-2146.3,0.00029041,2]
[311028939,1704874246238,-34848.33,0.00029041,2]
[311028940,1704874246248,-500.0,0.00029041,2]
[311028941,1704874246257,-500.0,0.00029041,2]
[311028942,1704874246267,-500.0,0.00029041,2]
[311028943,1704874246276,-500.0,0.00029041,2]
[311028944,1704874246286,-500.0,0.00029041,2]
[311028945,1704874246296,-1252.4,0.00029041,2]
[311028946,1704874246306,-500.0,0.00029041,2]
[311028947,1704874246316,-1008.13,0.00029041,2]
[311028948,1704874246325,-3496.96,0.00029041,2]
[311028949,1704874246334,-2784.88,0.00029041,2]
[311028950,1704874246344,-500.0,0.00029041,2]
[311028951,1704874246353,-2000.0,0.0002905,2]
[311028952,1704874246362,-2000.0,0.0002906,2]
[311028953,1704874246371,-2000.0,0.0002907,2]
[311028954,1704874246380,-2000.0,0.0002908,2]
[311028955,1704874246390,-500.0,0.00029086,2]
[311028956,1704874246399,-2000.0,0.0002909,2]
[311028957,1704874246409,-2000.0,0.000291,2]
[311028958,1704874246418,-2000.0,0.0002911,2]
[311028959,1704874246428,-2000.0,0.0002912,2]
[311028960,1704874246437,-2000.0,0.0002913,2]
[311028961,1704874246446,-2000.0,0.0002914,2]
[311028962,1704874246456,-2000.0,0.0002915,2]
[311028963,1704874246466,-2000.0,0.0002916,2]
[311028964,1704874246475,-2000.0,0.0002917,2]
[311028965,1704874246485,-2000.0,0.0002918,2]
[311028966,1704874246494,-2079.751713,0.0002919,2]
[311028967,1704874246504,-816.631,0.00029266,4]
[311028968,1704874246513,-816.631,0.00029266,4]
[311028969,1704874246522,-816.632,0.00029266,4]
[311028970,1704874246532,-816.631,0.00029266,4]
[311028971,1704874246542,-816.632,0.00029266,4]
[311028972,1704874246553,-532.33830109,0.00029315,2]
[311028973,1704874246563,-500.0,0.00029315,2]
[311028974,1704874246572,-500.0,0.00029315,2]
[311028975,1704874246581,-525.98,0.00029315,2]
[311028976,1704874246590,-500.0,0.00029315,2]
[311028977,1704874246599,-929.22,0.00029315,2]
[311028978,1704874246607,-1100.68,0.00029315,2]
[311028979,1704874246617,-500.0,0.00029315,2]
[311028980,1704874246626,-1112.07,0.00029315,2]
[311028981,1704874246634,-500.0,0.00029315,2]
[311028982,1704874246643,-500.0,0.00029315,2]
[311028983,1704874246652,-500.19121575,0.00029315,2]
[311028984,1704874246662,-500.0,0.00029315,2]
[311028985,1704874246671,-500.0,0.00029315,2]
[311028987,1704874246680,-500.0,0.00029315,2]
[311028988,1704874246689,-500.0,0.00029315,2]
[311028989,1704874246699,-500.0,0.00029315,2]
[311028990,1704874246708,-1559.91,0.00029315,2]
[311028991,1704874246717,-2400.37,0.00029315,2]
[311028992,1704874246726,-500.0,0.00029315,2]
[311028993,1704874246735,-500.0,0.00029315,2]
[311028994,1704874246744,-500.0,0.00029315,2]
[311028995,1704874246753,-500.0,0.00029315,2]
[311028996,1704874246762,-500.0,0.00029315,2]
[311028997,1704874246773,-500.0,0.00029315,2]
[311028998,1704874246782,-571.81,0.00029315,2]
[311028999,1704874246792,-1268.63,0.00029315,2]
[311029000,1704874246802,-1035.59,0.00029315,2]
[311029001,1704874246812,-500.0,0.00029315,2]
[311029002,1704874246821,-1367.67,0.00029315,2]
[311029003,1704874246830,-978.29,0.00029315,2]
[311029004,1704874246839,-777.91,0.00029315,2]
[311029005,1704874246849,-500.0,0.00029315,2]
[311029006,1704874246858,-1066.05,0.00029315,2]
[311029007,1704874246867,-500.0,0.00029315,2]
[311029008,1704874246876,-6312.44,0.00029315,2]
[311029009,1704874246885,-684.63,0.00029315,2]
[311029010,1704874246894,-947.02,0.00029315,2]
[311029011,1704874246903,-4895.63,0.00029315,2]
[311029012,1704874246912,-5500.46,0.00029315,2]
[311029013,1704874246921,-500.0,0.00029315,2]
[311029014,1704874246930,-500.0,0.00029315,2]
[311029015,1704874246940,-1450.96,0.00029315,2]
[311029016,1704874246949,-500.0,0.00029315,2]
[311029017,1704874246958,-500.0,0.00029315,2]
[311029018,1704874246966,-2524.73,0.00029315,2]
[311029019,1704874246975,-4083.87,0.00029315,2]
[311029020,1704874246984,-500.0,0.00029315,2]
[311029021,1704874246993,-500.0,0.00029315,2]
[311029022,1704874247002,-500.0,0.00029315,2]
[311029023,1704874247012,-12575.4,0.00029315,2]
[311029024,1704874247020,-1501.81,0.00029315,2]
[311029025,1704874247029,-500.0,0.00029315,2]
[311029026,1704874247038,-500.0,0.00029315,2]
[311029027,1704874247048,-1495.45,0.00029315,2]
[311029028,1704874247057,-1974.68,0.00029315,2]
[311029029,1704874247066,-705.34,0.00029315,2]
[311029030,1704874247075,-591.04,0.00029315,2]
[311029031,1704874247084,-500.0,0.00029315,2]
[311029032,1704874247093,-2146.3,0.00029315,2]
[311029033,1704874247102,-34848.33,0.00029315,2]
[311029034,1704874247111,-217.88755677,0.00029315,2]
[311029035,1704874247121,-500.0,0.00029315,2]
[311029036,1704874247130,-500.0,0.00029315,2]
[311029037,1704874247139,-500.0,0.00029315,2]
[311029038,1704874247148,-500.0,0.00029315,2]
[311029039,1704874247157,-1252.4,0.00029315,2]
[311029040,1704874247166,-500.0,0.00029315,2]
[311029041,1704874247175,-1008.13,0.00029315,2]
[311029042,1704874247185,-3496.96,0.00029315,2]
[311029043,1704874247194,-2784.88,0.00029315,2]
[311029044,1704874247203,-500.0,0.00029315,2]
[311029045,1704874247212,-151.0,0.00029487,2]
[311029046,1704874247221,-21965.72091891,0.000295,30]
[311029047,1704874247231,-346.77438312,0.00029589,2]
[311029048,1704874247240,-500.0,0.00029589,2]
[311029049,1704874247249,-525.98,0.00029589,2]
[311029050,1704874247258,-248.16618608,0.00029589,2]
[311029051,1704874247267,-929.22,0.00029589,2]
[311029052,1704874247277,-1100.68,0.00029589,2]
[311029053,1704874247286,-500.0,0.00029589,2]
[311029054,1704874247295,-1112.07,0.00029589,2]
[311029055,1704874247304,-500.0,0.00029589,2]
[311029056,1704874247313,-500.0,0.00029589,2]
[311029057,1704874247322,-500.0,0.00029589,2]
[311029058,1704874247332,-500.0,0.00029589,2]
[311029059,1704874247341,-500.0,0.00029589,2]
[311029060,1704874247350,-500.0,0.00029589,2]
[311029061,1704874247359,-500.0,0.00029589,2]
[311029062,1704874247368,-1559.91,0.00029589,2]
[311029063,1704874247378,-2400.37,0.00029589,2]
[311029064,1704874247389,-500.0,0.00029589,2]
[311029065,1704874247398,-500.0,0.00029589,2]
[311029066,1704874247407,-500.0,0.00029589,2]
[311029067,1704874247416,-500.0,0.00029589,2]
[311029068,1704874247425,-500.0,0.00029589,2]
[311029069,1704874247434,-500.0,0.00029589,2]
[311029070,1704874247443,-571.81,0.00029589,2]
[311029071,1704874247452,-1268.63,0.00029589,2]
[311029072,1704874247462,-1035.59,0.00029589,2]
[311029073,1704874247471,-500.0,0.00029589,2]
[311029074,1704874247480,-1367.67,0.00029589,2]
[311029075,1704874247489,-978.29,0.00029589,2]
[311029076,1704874247498,-777.91,0.00029589,2]
[311029077,1704874247507,-500.0,0.00029589,2]
[311029078,1704874247516,-1066.05,0.00029589,2]
[311029079,1704874247525,-416.2622589,0.00029589,2]
[311029080,1704874247534,-6312.44,0.00029589,2]
[311029081,1704874247543,-684.63,0.00029589,2]
[311029082,1704874247553,-947.02,0.00029589,2]
[311029083,1704874247563,-4895.63,0.00029589,2]
[311029084,1704874247572,-5500.46,0.00029589,2]